bitfinex/quotes_ETHUSD_20250623
["timestamp","ask_amount","ask_price","bid_price","bid_amount"]
[1750710993517,0.7764,2354.8,2353.7,0.7776]
[1750710993720,0.7764,2354.8,2354.1,4.24777551]
[1750710993918,0.7764,2354.8,2354.3,4.24753515]
[1750710994120,0.7764,2354.8,2354.2,0.90458582]
[1750710994121,0.7764,2354.8,2354.2,5.15225875]
[1750710994317,0.7764,2354.8,2354.3,4.24742157]
[1750710994533,0.7764,2354.8,2353.8,0.55]
[1750710994804,0.7764,2354.8,2353.3,0.7776]
[1750710995010,0.7764,2354.8,2354.2,4.24762495]
[1750710995833,0.7764,2354.8,2354.3,4.24744785]
[1750710996035,0.7764,2354.8,2353.5,4.24899086]
[1750710996036,0.7764,2354.8,2354.0,4.24800541]
[1750710996238,0.7764,2354.8,2353.6,0.7883]
[1750710996553,0.7764,2354.8,2353.8,0.55]
[1750710996714,0.7764,2354.8,2354.3,4.24740695]
[1750710996916,0.7764,2354.8,2354.4,4.24723983]
[1750710997142,0.7764,2354.8,2354.3,0.4247407]
[1750710997344,0.7764,2354.8,2354.3,4.67222287]
[1750710997932,0.7871,2355.1,2354.3,0.4247407]
[1750710998129,0.7871,2355.1,2354.6,4.24685122]
[1750710998328,0.7871,2355.1,2354.6,4.24684302]
[1750710998533,0.7871,2356.3,2355.6,4.24512097]
[1750710998820,0.7871,2357.5,2355.7,4.79502271]
[1750710999030,0.29032018,2357.4,2355.9,0.55]
[1750710999229,0.71295009,2357.4,2356.3,4.24384897]
[1750710999441,0.71295009,2357.4,2356.6,4.24329667]
[1750710999672,0.71295009,2357.4,2356.5,4.24348492]
[1750710999855,0.71295009,2357.4,2356.2,8.403]
[1750711000059,0.71295009,2357.4,2356.6,4.24337585]
[1750711000389,0.29032018,2357.4,2356.7,4.24312528]
[1750711000681,0.29032018,2357.4,2356.8,4.24301188]
[1750711000840,0.7871,2357.5,2357.0,4.24258827]
[1750711001044,0.7871,2357.5,2356.9,4.24285567]
[1750711001286,0.7527,2357.9,2356.9,4.24286138]
[1750711001431,2.93337561,2359.2,2357.5,0.7925]
[1750711001624,2.726,2359.2,2357.6,4.79143543]
[1750711001856,2.726,2359.2,2357.5,7.76025443]
[1750711001857,0.7527,2359.0,2357.5,0.7925]
[1750711002242,0.7527,2359.0,2357.4,2.726]
[1750711002455,2.726,2358.9,2357.5,5.35417805]
[1750711002666,10.7527,2358.8,2357.5,5.35410924]
[1750711003069,0.7527,2358.8,2357.5,5.35410924]
[1750711003573,0.7871,2358.5,2357.5,1.1125]
[1750711003767,0.7871,2358.5,2357.3,4.24210884]
[1750711003970,0.7871,2358.5,2357.2,2.725]
[1750711004733,0.7871,2358.2,2357.2,2.725]
[1750711004929,0.7871,2358.2,2357.1,8.394]
[1750711004930,0.7871,2358.1,2357.0,0.47928614]
[1750711005285,0.7871,2358.1,2356.9,4.2427719]
[1750711005439,0.7871,2358.1,2356.8,6.94398608]
[1750711005637,0.7871,2358.1,2356.8,2.701]
[1750711005974,0.7871,2358.0,2356.8,11.092]
[1750711007072,0.7871,2357.8,2356.4,0.8325]
[1750711007247,0.7871,2357.8,2356.5,0.35325]
[1750711007447,0.7871,2357.5,2356.2,2.7]
[1750711007675,0.7871,2357.5,2356.2,6.94404726]
[1750711008180,0.55,2357.4,2355.7,10.9576]
[1750711008380,10.0,2357.6,2356.1,4.24420801]
[1750711008381,0.7871,2357.1,2356.1,4.24420801]
[1750711008687,0.7871,2357.1,2355.4,0.7596]
[1750711008688,0.7871,2357.1,2355.4,3.4596]
[1750711008875,0.7871,2356.9,2355.8,4.24477978]
[1750711009070,0.7871,2356.9,2355.9,4.2446574]
[1750711009276,10.0,2356.8,2355.9,4.2446574]
[1750711009451,10.41694081,2356.8,2355.9,4.2446574]
[1750711009653,0.7871,2356.9,2355.6,4.24520292]
[1750711009847,0.7871,2356.9,2355.7,4.74645145]
[1750711010185,0.7623,2356.8,2355.7,0.5015736]
[1750711010389,0.7623,2356.8,2355.8,4.24474718]
[1750711010947,0.7623,2356.8,2356.1,4.24426614]
[1750711011257,0.7623,2356.8,2355.6,4.24520292]
[1750711011258,0.7623,2356.8,2355.7,2.7]
[1750711011597,0.7623,2356.8,2356.1,4.24416812]
[1750711011798,0.7623,2356.8,2355.9,4.24459578]
[1750711011998,0.7623,2356.8,2356.1,4.24429072]
[1750711012177,0.7623,2356.8,2356.1,4.24430202]
[1750711012563,0.7,2356.6,2356.2,4.24412189]
[1750711013286,0.7,2356.6,2356.1,4.24418681]
[1750711013500,0.7,2356.6,2356.2,4.24409426]
[1750711013799,0.7623,2356.8,2356.5,4.24358158]
[1750711014122,0.7623,2356.8,2356.6,4.24340083]
[1750711014422,0.7623,2356.8,2356.7,4.24322145]
[1750711014728,0.7575,2357.2,2356.9,4.24277954]
[1750711015484,0.7575,2357.2,2357.1,4.24250137]
[1750711015689,0.7575,2357.2,2356.3,4.24377199]
[1750711015871,0.7575,2357.2,2356.4,4.2436836]
[1750711016069,0.7575,2357.2,2356.3,4.71546843]
[1750711016286,0.7575,2357.2,2356.3,0.47161274]
[1750711016688,0.7575,2357.2,2356.5,4.24349116]
[1750711017019,0.7575,2357.2,2356.4,4.24367297]
[1750711017979,0.7575,2357.2,2356.3,6.94384962]
[1750711018215,0.7575,2357.2,2356.4,4.24374823]
[1750711018516,0.7575,2357.2,2356.3,6.94385529]
[1750711018674,2.10325,2357.2,2356.4,4.24374362]
[1750711019117,2.10325,2357.2,2356.3,2.7]
[1750711019446,2.10325,2357.2,2356.4,4.24368106]
[1750711019814,2.10325,2357.2,2356.5,4.24344116]
[1750711019815,0.7575,2357.2,2356.5,4.24344116]
[1750711020637,0.7575,2357.2,2356.2,12.61303976]
[1750711020822,0.7575,2357.2,2356.3,4.24380849]
[1750711021015,0.7575,2357.2,2356.4,4.24366153]
[1750711021642,0.7575,2357.2,2356.5,0.55]
[1750711021945,0.7575,2357.2,2356.8,4.24296706]
[1750711022129,0.7575,2357.2,2356.9,4.24283095]
[1750711022745,0.7575,2357.2,2355.9,2.7]
[1750711023042,0.7575,2357.2,2356.0,8.366]
[1750711023241,0.7575,2357.2,2356.9,4.2427333]
[1750711023413,0.7575,2357.2,2357.0,4.24257966]
[1750711024045,1.31306521,2358.0,2357.0,4.24257966]
[1750711024046,0.7656,2357.7,2357.0,4.66689288]
[1750711024199,0.7656,2357.7,2357.1,4.24243119]
[1750711024533,0.7656,2357.7,2357.2,4.24223173]
[1750711024724,0.7656,2357.7,2357.1,4.24242592]
[1750711025125,0.7656,2357.7,2357.2,4.24230236]
[1750711025328,0.7656,2357.7,2356.7,4.24314625]
[1750711025628,0.7656,2357.7,2356.7,6.01114928]
[1750711026340,0.7656,2357.7,2356.1,0.8262]
[1750711026547,0.7871,2357.5,2356.4,4.24376167]
[1750711026728,0.7871,2357.5,2356.5,4.2434081]
[1750711026729,10.7871,2357.5,2356.5,4.2434081]
[1750711026931,10.7871,2357.5,2356.5,4.24341764]
[1750711027248,10.7871,2357.5,2356.6,4.24339438]
[1750711027542,1.34871,2357.4,2356.6,4.24337699]
[1750711027729,0.7871,2357.4,2356.5,4.24356381]
[1750711027932,0.7871,2357.4,2356.4,4.24363807]
[1750711027933,10.7871,2357.4,2356.4,4.24365519]
[1750711028439,10.7871,2357.4,2356.5,4.24353863]
[1750711029042,0.7871,2357.4,2356.2,4.24401642]
[1750711029244,0.7658,2357.3,2356.3,4.62428692]
[1750711029447,1.11238,2357.3,2356.3,6.04900741]
[1750711030369,1.11238,2357.3,2356.5,4.24357009]
[1750711030737,1.53034559,2357.3,2356.5,4.24357009]
[1750711031456,1.18376559,2357.3,2356.7,4.24317166]
[1750711031659,1.18376559,2357.3,2356.3,6.0489272]
[1750711031838,1.18376559,2357.3,2356.4,4.24375121]
[1750711032614,1.18376559,2357.3,2356.5,4.24347327]
[1750711033124,0.7871,2357.2,2356.2,4.24403081]
[1750711033349,0.7871,2357.2,2356.3,0.38123679]
[1750711033675,0.7871,2356.9,2355.5,0.8237]
[1750711033950,10.0,2357.0,2355.6,0.38135753]
[1750711033951,0.7871,2356.6,2355.6,0.38135753]
[1750711034158,0.7871,2356.6,2355.5,0.38135753]
[1750711034480,10.0,2356.4,2355.2,4.24585117]
[1750711034765,0.7871,2356.3,2355.2,4.24585117]
[1750711034966,0.7871,2356.1,2355.2,5.13327523]
[1750711035366,10.7871,2356.1,2355.2,0.88742406]
[1750711035588,0.7871,2356.1,2355.0,10.38147853]
[1750711035794,0.7871,2356.1,2355.7,4.24496424]
[1750711036285,0.7871,2356.1,2355.2,4.24579201]
[1750711036658,0.7871,2356.1,2355.2,4.24584065]
[1750711036863,0.7628,2356.0,2355.0,4.24611046]
[1750711037061,0.7628,2356.0,2355.1,0.42461105]
[1750711037262,0.7628,2356.0,2355.1,4.24610419]
[1750711037468,0.7628,2356.0,2355.4,4.24548613]
[1750711037904,0.7628,2356.0,2355.0,5.62318146]
[1750711037905,0.7628,2356.0,2355.0,1.3769]
[1750711038192,0.7628,2356.0,2355.1,4.24610419]
[1750711038491,0.7628,2356.0,2355.2,0.38100878]
[1750711038707,0.7628,2356.0,2355.7,4.24500059]
[1750711038863,0.7628,2356.0,2355.4,4.79556338]
[1750711039187,0.7871,2356.3,2355.6,1.3273]
[1750711039390,2.673,2356.9,2356.2,4.24398995]
[1750711039685,10.0,2356.8,2355.7,4.24502271]
[1750711039998,2.673,2356.9,2356.2,4.24402569]
[1750711040167,10.0,2356.8,2356.1,4.24420134]
[1750711040690,13.4601,2357.0,2356.2,4.24410183]
[1750711040902,13.4601,2357.0,2356.3,4.24377509]
[1750711041105,13.4601,2357.0,2356.2,4.24407357]
[1750711041751,12.673,2357.0,2355.8,0.55723227]
[1750711041958,0.756,2356.9,2356.0,4.24431554]
[1750711042188,0.756,2356.9,2355.9,4.2445567]
[1750711042388,0.756,2356.9,2355.9,4.24448329]
[1750711042685,0.756,2356.9,2356.0,4.24446599]
[1750711042986,1.3429,2356.8,2355.9,4.24456496]
[1750711043291,1.3429,2356.8,2356.0,4.24447683]
[1750711043695,1.3429,2356.8,2355.9,4.24456303]
[1750711044004,0.7871,2356.7,2355.9,4.24456303]
[1750711044222,0.7871,2356.7,2356.0,4.24447931]
[1750711044420,1.0001,2356.7,2355.9,4.24456261]
[1750711044731,1.0001,2356.7,2355.1,4.477]
[1750711044732,0.7606,2356.6,2355.4,2.673]
[1750711044935,0.7606,2356.6,2355.6,4.24512121]
[1750711045079,0.7606,2356.6,2355.8,4.24474716]
[1750711045442,0.7606,2356.6,2355.6,4.24508059]
[1750711045572,0.7606,2356.6,2355.6,5.36141973]
[1750711045767,0.7606,2356.6,2355.7,4.24501024]
[1750711046278,2.673,2356.5,2355.6,1.11633914]
[1750711046480,0.7871,2356.3,2355.2,4.24583373]
[1750711046672,0.7871,2356.3,2355.1,4.24599522]
[1750711047069,0.55,2356.0,2354.6,4.24686436]
[1750711047423,0.7841,2355.7,2354.4,4.24719871]
[1750711047734,0.7841,2355.7,2354.1,2.673]
[1750711047932,0.7841,2355.4,2354.5,4.24704401]
[1750711048213,0.7841,2355.4,2354.4,4.24723938]
[1750711048380,0.7679,2355.1,2354.4,4.24727367]
[1750711048581,0.7679,2355.1,2354.2,4.59358366]
[1750711048796,0.7679,2355.1,2354.1,0.35460796]
[1750711048999,0.7679,2355.1,2353.8,4.24832816]
[1750711049255,0.7679,2355.1,2353.9,4.2481613]
[1750711049594,0.7679,2355.1,2353.8,4.24836099]
[1750711049781,0.7679,2354.9,2353.8,4.24836099]
[1750711050112,0.7679,2354.9,2353.8,1.19737831]
[1750711050113,9.0929,2354.9,2353.8,1.19737831]
[1750711050408,0.7762,2354.7,2353.7,4.24862213]
[1750711050621,0.55,2354.4,2353.1,0.2203921]
[1750711050784,0.7762,2354.2,2353.2,0.35474358]
[1750711050993,10.77425792,2354.6,2353.2,0.35474358]
[1750711050994,10.7871,2354.0,2353.2,0.35474358]
[1750711051186,0.7871,2353.8,2353.2,0.35474358]
[1750711052169,3.4611,2353.7,2353.2,0.35474358]
[1750711052516,10.0,2353.6,2353.2,0.35474358]
[1750711052869,0.7871,2353.7,2353.1,0.2203921]
[1750711053085,0.7871,2353.7,2353.3,4.24918427]
[1750711053325,0.7871,2353.7,2353.1,0.2203921]
[1750711053899,1.21998276,2353.7,2353.1,4.47009138]
[1750711054303,1.21998276,2353.7,2353.4,4.24911766]
[1750711054627,1.21998276,2353.7,2353.2,4.24941191]
[1750711054628,0.7871,2354.1,2353.6,4.24881033]
[1750711054810,0.7871,2354.5,2354.0,4.24803684]
[1750711055190,0.7871,2354.5,2353.9,4.24817588]
[1750711055383,0.7871,2354.5,2353.5,3.4966]
[1750711055588,1.2020621,2354.5,2353.6,0.34966]
[1750711055786,1.2020621,2354.5,2353.7,4.24862981]
[1750711056030,1.2020621,2354.5,2353.9,4.24815918]
[1750711056511,0.7871,2354.5,2354.2,4.24763752]
[1750711056827,0.7871,2354.5,2353.7,0.55]
[1750711056988,0.7871,2354.5,2353.8,4.8182524]
[1750711057323,1.20333786,2354.5,2353.8,0.56982959]
[1750711057534,1.20333786,2354.5,2353.6,4.24874416]
[1750711058147,1.20333786,2354.5,2353.7,4.2486141]
[1750711058436,1.20333786,2354.5,2353.7,4.24854913]
[1750711058586,11.20333786,2354.5,2353.7,4.24862981]
[1750711058788,11.20333786,2354.5,2353.6,4.24871194]
[1750711058986,12.59117165,2354.5,2353.6,4.24871194]
[1750711059191,12.59117165,2354.5,2353.3,4.24921176]
[1750711059392,11.80407165,2354.5,2353.4,4.24908442]
[1750711059718,11.80407165,2354.5,2353.2,7.7237737]
[1750711059719,0.7871,2354.4,2353.3,4.24921855]
[1750711059886,2.675,2354.3,2353.5,4.24898357]
[1750711060093,10.0,2354.2,2353.5,4.24898357]
[1750711060409,10.0,2354.2,2353.4,4.24906907]
[1750711060795,10.0,2354.2,2353.6,4.24871138]
[1750711061118,10.0,2354.3,2353.7,4.24852035]
[1750711061319,0.7871,2354.4,2353.3,3.225]
[1750711061488,0.7871,2354.4,2353.4,4.24906917]
[1750711062188,0.7871,2354.4,2353.3,4.41677684]
[1750711062189,0.7871,2354.4,2353.3,3.86677684]
[1750711062388,0.7871,2354.4,2353.3,2.675]
[1750711062590,0.7871,2354.4,2353.1,0.2203921]
[1750711062591,0.7647,2354.2,2353.1,0.2203921]
[1750711062820,0.7647,2353.9,2353.1,0.2203921]
[1750711063219,0.7647,2353.9,2353.2,0.35474358]
[1750711063421,10.0,2353.8,2353.2,0.35474358]
[1750711063942,10.0,2353.8,2353.1,0.2203921]
[1750711064093,11.34407,2353.8,2353.1,0.2203921]
[1750711064495,0.776,2353.7,2353.1,0.2203921]
[1750711067227,0.776,2353.7,2353.3,4.24925847]
[1750711067427,0.776,2353.7,2353.4,4.24916847]
[1750711067752,0.776,2354.0,2353.4,4.24904107]
[1750711067893,0.776,2354.0,2353.4,4.24903998]
[1750711068135,0.776,2354.0,2353.4,4.24914813]
[1750711068683,0.776,2354.0,2353.5,4.24897388]
[1750711068990,0.776,2354.0,2353.4,0.90483342]
[1750711069152,0.776,2354.0,2353.2,0.55]
[1750711069353,0.776,2354.0,2353.4,4.24915099]
[1750711069734,0.776,2354.0,2353.5,4.2489837]
[1750711069978,0.776,2354.0,2353.4,4.24908476]
[1750711070386,0.776,2354.0,2353.5,4.24897075]
[1750711070661,0.776,2354.0,2353.2,0.55]
[1750711070862,0.776,2354.0,2353.5,4.24887026]
[1750711072666,0.776,2354.0,2353.2,0.55]
[1750711072975,0.776,2354.0,2353.6,4.24873354]
[1750711073147,0.776,2354.0,2353.2,4.79952801]
[1750711073347,0.776,2354.0,2353.1,0.9928921]
[1750711073533,0.776,2354.0,2353.2,4.24942058]
[1750711073740,0.776,2354.0,2353.3,4.2493358]
[1750711073934,0.776,2354.0,2353.2,5.12145335]
[1750711074863,0.3947713,2353.9,2353.2,5.12145335]
[1750711075032,0.776,2354.0,2353.2,5.12145335]
[1750711075233,0.39477164,2353.9,2353.2,5.12145335]
[1750711075435,10.63701644,2353.8,2353.3,0.95914804]
[1750711075638,0.39583498,2353.7,2353.3,0.95914804]
[1750711075985,10.63701644,2353.8,2353.4,4.24909568]
[1750711076538,10.63701644,2353.8,2353.1,0.2203921]
[1750711076539,0.39592427,2353.7,2353.1,0.2203921]
[1750711076773,0.39592427,2353.7,2353.2,4.24944297]
[1750711077209,0.39717936,2353.6,2353.2,4.24944297]
[1750711077393,0.39717936,2353.6,2353.1,4.47005387]
[1750711077394,1.15297936,2353.5,2353.1,0.2203921]
[1750711077559,0.39717936,2353.4,2353.1,0.2203921]
[1750711077767,2.645,2354.2,2353.1,0.2203921]
[1750711077768,0.7558,2353.2,2353.1,0.2203921]
[1750711078052,11.15304809,2353.2,2353.1,0.2203921]
[1750711078654,0.39724809,2353.2,2353.1,0.2203921]
[1750711078856,10.0,2353.7,2353.1,4.99944661]
[1750711079063,0.39724158,2353.6,2353.1,4.46998845]
[1750711079250,0.7558,2353.4,2353.1,0.2203921]
[1750711079650,0.39724357,2353.3,2353.1,0.2203921]
[1750711079884,0.39746593,2353.2,2353.1,0.2203921]
[1750711080052,0.39746671,2353.2,2353.1,4.47010524]
[1750711080387,0.39746671,2353.2,2353.1,0.2203921]
[1750711080582,10.0,2353.3,2353.1,0.2203921]
[1750711080783,0.39750819,2353.2,2353.1,0.2203921]
[1750711080986,0.39735514,2353.2,2353.1,0.2203921]
[1750711081973,0.39733305,2353.2,2353.1,4.47010524]
[1750711082283,0.39733305,2353.2,2353.1,0.2203921]
[1750711082480,0.39725,2353.2,2353.1,0.2203921]
[1750711082780,0.39725,2353.2,2353.1,4.47010524]
[1750711082986,0.39725,2353.2,2353.1,0.2203921]
[1750711083175,0.39723671,2353.2,2353.1,0.2203921]
[1750711083374,0.39723671,2353.2,2353.1,5.34212463]
[1750711083577,0.7807,2354.4,2353.4,0.55]
[1750711083777,0.39704757,2354.3,2353.4,0.55]
[1750711083967,11.41771644,2354.4,2353.8,4.24844619]
[1750711083968,0.39704757,2354.2,2353.8,4.24844619]
[1750711084296,0.39704757,2354.1,2353.7,4.2486279]
[1750711084489,0.39704757,2354.0,2353.7,4.2486279]
[1750711084784,0.39704757,2353.9,2353.7,5.09839169]
[1750711084982,10.0,2354.2,2353.4,0.55]
[1750711085187,0.39710082,2354.1,2353.2,4.24953255]
[1750711085410,10.63701644,2353.5,2353.1,4.46995402]
[1750711085582,0.39717661,2353.4,2353.1,0.2203921]
[1750711085768,0.39717661,2353.3,2353.1,0.2203921]
[1750711085968,0.39717661,2353.2,2353.1,0.2203921]
[1750711086777,1.18427661,2353.2,2353.1,0.2203921]
[1750711086953,3.39480427,2353.2,2353.1,0.2203921]
[1750711087389,13.39480427,2353.2,2353.1,0.2203921]
[1750711087701,0.7871,2353.0,2352.2,4.2512954]
[1750711087902,2.21052766,2353.2,2352.3,0.35487931]
[1750711087903,10.63701644,2352.7,2352.3,0.35487931]
[1750711088198,11.18417561,2352.6,2352.3,0.35487931]
[1750711088405,10.7871,2352.6,2352.3,0.35487931]
[1750711088557,0.39708968,2352.5,2352.3,0.35487931]
[1750711088751,0.39709084,2352.4,2352.3,0.35487931]
[1750711089319,0.397093,2352.4,2352.3,0.35487931]
[1750711089803,0.43244874,2353.0,2352.3,0.35487931]
[1750711089804,0.7871,2353.8,2353.1,4.24954933]
[1750711089969,0.7871,2353.8,2352.5,4.25079702]
[1750711089970,1.97203343,2353.8,2353.3,4.24932369]
[1750711090171,0.7871,2353.8,2353.4,4.24913056]
[1750711090390,0.7871,2353.8,2353.5,4.2489431]
[1750711090600,0.7871,2353.8,2353.0,0.8186]
[1750711090800,10.63701644,2354.0,2353.1,0.55]
[1750711091006,14.82615644,2354.0,2353.6,4.24870913]
[1750711091318,14.82615644,2354.0,2353.1,0.55]
[1750711091622,14.82615644,2354.0,2353.4,4.24914314]
[1750711092004,14.82615644,2354.0,2353.3,4.24919161]
[1750711092220,14.82615644,2354.0,2353.4,4.24915565]
[1750711092702,14.82615644,2354.0,2353.5,4.24898485]
[1750711093093,14.82615644,2354.0,2353.5,4.24897855]
[1750711093703,14.82615644,2354.0,2353.4,4.2490704]
[1750711094023,14.82615644,2354.0,2353.5,4.24894104]
[1750711094230,14.82615644,2354.0,2353.4,4.24911458]
[1750711095310,10.0,2353.9,2353.3,4.24924615]
[1750711095514,10.0,2353.5,2353.1,4.24960766]
[1750711095711,10.0,2353.5,2353.2,4.24951574]
[1750711096230,10.7589,2353.8,2352.9,0.55]
[1750711096429,10.7589,2353.8,2353.4,4.24907722]
[1750711096840,10.7589,2353.8,2353.0,4.24989375]
[1750711096841,10.7589,2353.8,2353.5,4.24896291]
[1750711097132,10.7589,2353.8,2353.3,4.24924576]
[1750711097515,10.7589,2353.8,2353.2,4.24950326]
[1750711097825,10.7589,2353.8,2353.3,4.24917477]
[1750711097987,10.7589,2353.8,2352.8,10.871]
[1750711098200,10.7589,2353.8,2353.2,4.24952892]
[1750711098433,10.7589,2353.8,2353.1,4.24960426]
[1750711099253,10.7589,2353.8,2353.0,4.24976821]
[1750711099254,10.7589,2353.8,2353.0,4.24981656]
[1750711099405,10.7589,2353.8,2352.9,4.25007089]
[1750711099605,10.7589,2353.8,2353.2,4.24943434]
[1750711100431,10.7589,2353.8,2353.3,4.24933218]
[1750711100735,10.7589,2353.8,2353.2,5.09935862]
[1750711101506,10.7589,2353.8,2353.1,4.24961732]
[1750711101701,0.39692114,2353.7,2353.1,4.24961287]
[1750711102040,0.39692114,2353.7,2353.2,4.24952053]
[1750711102337,0.39692114,2353.7,2353.2,4.24952489]
[1750711102542,0.39695023,2353.6,2353.2,4.24952489]
[1750711102745,10.7589,2353.8,2353.2,0.84993399]
[1750711103050,10.0,2353.5,2352.7,0.7625]
[1750711103215,10.0,2353.5,2352.9,4.25005705]
[1750711103404,10.0,2353.5,2352.7,0.7625]
[1750711103604,10.0,2353.5,2353.0,4.24974935]
[1750711103805,10.0,2353.5,2352.9,4.24999756]
[1750711104005,10.0,2353.5,2352.9,8.49996461]
[1750711104237,14.58194012,2353.4,2353.0,4.24980622]
[1750711104540,14.58194012,2353.4,2352.9,4.24996573]
[1750711104740,14.58194012,2353.4,2352.9,0.92626701]
[1750711104924,14.58194012,2353.4,2353.1,4.24962307]
[1750711105132,15.34084012,2353.8,2353.2,4.249455]
[1750711105303,0.39697407,2353.7,2353.1,4.24962136]
[1750711105506,0.39697407,2353.7,2353.0,4.24978341]
[1750711105725,10.0,2353.4,2352.9,4.24995512]
[1750711106051,10.0,2353.4,2353.0,4.24989125]
[1750711106655,10.0,2353.4,2352.9,4.24996759]
[1750711106957,10.0,2353.4,2353.0,4.24985578]
[1750711107933,10.0,2353.4,2352.8,4.25025501]
[1750711108130,10.0,2353.4,2353.1,4.24963707]
[1750711108354,10.0,2353.4,2353.2,4.24949032]
[1750711108659,10.0,2353.4,2353.1,4.24964421]
[1750711108965,10.0,2353.4,2353.0,4.2498049]
[1750711109322,10.0,2353.4,2353.0,5.09969858]
[1750711109521,10.0,2353.4,2353.0,4.2497229]
[1750711110761,10.0,2353.4,2353.1,4.24960456]
[1750711111054,10.0,2353.4,2353.0,4.24979748]
[1750711111243,10.0,2353.4,2353.1,4.24970796]
[1750711111456,10.0,2353.4,2353.0,4.24978212]
[1750711111631,0.7871,2353.3,2352.6,8.238]
[1750711111831,0.7871,2353.3,2353.0,4.24978989]
[1750711112035,0.7871,2353.3,2353.0,4.24976109]
[1750711112433,14.58194012,2353.5,2352.7,10.8238]
[1750711112660,0.7546,2354.4,2353.9,4.24826883]
[1750711112863,0.7546,2354.4,2353.6,8.234]
[1750711113061,0.7546,2354.4,2353.4,7.68203152]
[1750711113062,15.33654012,2354.4,2353.7,0.8234]
[1750711113236,14.58194012,2354.1,2353.8,4.24842827]
[1750711113626,0.7546,2354.4,2353.9,4.79826883]
[1750711113958,15.36904012,2355.1,2353.9,8.23116883]
[1750711114369,14.58194012,2354.8,2353.9,5.61816883]
[1750711114657,14.58194012,2354.8,2353.9,16.46216883]
[1750711114859,14.58194012,2354.7,2353.9,6.31932854]
[1750711115052,0.778,2354.7,2353.9,6.86932854]
[1750711115871,14.58194012,2354.5,2353.9,4.24826883]
[1750711116052,14.58194012,2354.5,2353.9,4.79826883]
[1750711116358,0.778,2354.7,2353.9,4.79826883]
[1750711116562,14.58194012,2354.8,2353.9,5.58886883]
[1750711117140,14.58194012,2354.8,2353.9,6.0175107]
[1750711117773,0.7871,2355.0,2353.9,6.0175107]
[1750711118147,14.58194012,2354.9,2353.9,6.0175107]
[1750711118340,0.7871,2355.0,2353.9,6.0175107]
[1750711118866,10.0,2354.8,2354.3,4.2475344]
[1750711119069,10.0,2354.5,2353.6,0.7547]
[1750711119269,10.0,2354.5,2353.9,4.2481635]
[1750711119471,10.0,2354.5,2353.6,8.9767]
[1750711119673,0.7871,2354.6,2354.1,4.24778909]
[1750711119833,0.7871,2354.6,2354.1,8.221]
[1750711120038,0.7871,2354.6,2354.1,12.46890303]
[1750711120434,10.0,2354.5,2354.1,8.221]
[1750711120842,10.0,2354.5,2353.6,0.7547]
[1750711121139,10.0,2354.5,2353.7,8.218]
[1750711121340,10.0,2354.5,2353.3,12.612]
[1750711121341,14.58194012,2354.3,2353.4,0.8164]
[1750711121663,14.58194012,2354.3,2353.6,4.24871657]
[1750711121883,10.0,2354.2,2353.6,12.46572397]
[1750711122708,14.58194012,2354.0,2353.2,10.21]
[1750711123000,10.0,2353.9,2353.2,12.46451624]
[1750711123701,10.0,2353.9,2353.2,8.215]
[1750711123986,12.53690401,2353.9,2353.2,0.35474358]
[1750711124143,10.0,2353.6,2353.2,0.35474358]
[1750711124997,0.7871,2353.5,2353.2,0.35474358]
[1750711125688,10.0,2353.3,2353.2,0.35474358]
[1750711126073,10.0,2353.3,2352.7,8.211]
[1750711126470,0.7871,2353.5,2352.7,8.211]
[1750711126471,0.7871,2353.5,2352.9,4.25007041]
[1750711126846,0.7871,2353.5,2352.9,4.25007356]
[1750711127389,0.7871,2353.5,2353.0,4.24979011]
[1750711127551,0.7871,2353.5,2352.6,0.55]
[1750711127746,0.7871,2353.5,2352.8,4.25009592]
[1750711128189,0.7871,2353.5,2353.0,4.24989278]
[1750711128390,0.7871,2353.5,2352.9,4.24997064]
[1750711129092,0.7871,2353.5,2352.9,4.24997083]
[1750711129414,0.7871,2353.5,2353.0,4.24989018]
[1750711129597,0.7509,2353.9,2353.1,3.13]
[1750711129819,0.7509,2353.9,2353.2,1.2121]
[1750711130162,0.7509,2353.9,2353.4,4.24901555]
[1750711130666,10.0,2353.8,2353.2,4.2494642]
[1750711131052,10.0,2353.8,2353.3,4.24933551]
[1750711131895,10.0,2353.8,2353.4,4.24914383]
[1750711132103,0.7509,2353.9,2353.7,4.24853047]
[1750711132394,0.7509,2353.9,2353.5,8.201]
[1750711132899,0.7509,2353.9,2353.6,4.24878134]
[1750711133572,0.7509,2353.9,2353.5,12.44991287]
[1750711134270,0.7509,2353.9,2353.6,4.24879253]
[1750711134487,0.7509,2353.9,2353.6,4.24879168]
[1750711134692,0.7509,2353.9,2353.5,12.44989417]
[1750711135416,0.7509,2353.9,2353.6,4.24879316]
[1750711135599,0.7509,2353.9,2353.7,4.24861122]
[1750711135803,15.36354012,2354.2,2353.6,4.24869181]
[1750711135978,15.36354012,2354.2,2353.7,4.24858199]
[1750711136509,10.0,2354.1,2353.7,4.24858199]
[1750711136920,10.44,2354.5,2353.7,4.24858199]
[1750711136921,23.22904012,2354.5,2353.9,4.24817709]
[1750711137093,10.0,2354.4,2353.8,4.24844931]
[1750711137415,15.36904012,2354.5,2353.8,4.24844931]
[1750711137604,15.36904012,2354.5,2354.0,4.24798112]
[1750711138114,15.36904012,2354.5,2354.0,1.66893586]
[1750711138313,15.36904012,2354.5,2354.0,4.24798673]
[1750711139414,15.36904012,2354.5,2353.9,12.44125107]
[1750711139619,15.36904012,2354.5,2353.9,8.193]
[1750711140184,15.36904012,2354.5,2353.9,12.44126076]
[1750711140384,15.36904012,2354.5,2354.0,4.24797992]
[1750711140688,15.36904012,2354.5,2353.9,12.44118964]
[1750711141013,15.36904012,2354.5,2354.0,4.24792731]
[1750711141191,15.36904012,2354.5,2354.0,4.24801071]
[1750711141392,15.36904012,2354.5,2354.1,4.24788087]
[1750711141912,15.36904012,2354.5,2353.9,14.27712699]
[1750711142118,15.36904012,2354.5,2354.0,4.24797529]
[1750711143006,14.58194012,2354.2,2353.4,0.84984793]
[1750711143184,14.58194012,2354.2,2353.1,8.9792]
[1750711143185,14.58194012,2353.8,2353.1,8.9792]
[1750711143386,14.58194012,2353.8,2353.0,4.24974021]